[Event "Latvijas 2022. gada jauniešu čempionāta fināls"]
[Site "Riga, Latvia"]
[Date "2022.06.14"]
[Round "4.4"]
[White "Savicevs, Arsenijs"]
[Black "Paikens, Reinis"]
[Result "0-1"]
[TimeControl "3600+30"]
[WhiteElo "1961"]
[BlackElo "1534"]

1. Nf3 {[%clk 01:00:48]} {[%emt 00:00:11]} d5 {[%clk 01:00:29]} {[%emt
00:00:32]} 2. d4 {[%clk 01:01:10]} {[%emt 00:00:06]} Bf5 {[%clk 01:00:53]}
{[%emt 00:00:07]} 3. c4 {[%clk 01:00:59]} {[%emt 00:00:40]} e6 {[%clk
01:00:31]} {[%emt 00:00:52]} 4. Nc3 {[%clk 01:00:46]} {[%emt 00:00:43]} Nf6
{[%clk 01:00:01]} {[%emt 00:01:01]} 5. e3 {[%clk 01:01:00]} {[%emt 00:00:15]}
c6 {[%clk 00:59:24]} {[%emt 00:01:08]} 6. Be2 {[%clk 01:01:23]} {[%emt
00:00:06]} Be7 {[%clk 00:59:10]} {[%emt 00:00:45]} 7. Nh4 {[%clk 01:01:36]}
{[%emt 00:00:16]} Bg6 {[%clk 00:59:12]} {[%emt 00:00:29]} 8. Nxg6 {[%clk
01:01:46]} {[%emt 00:00:19]} hxg6 {[%clk 00:59:32]} {[%emt 00:00:11]} 9. O-O
{[%clk 01:02:00]} {[%emt 00:00:15]} Qc7 {[%clk 00:59:43]} {[%emt 00:00:20]} 10.
h3 {[%clk 01:02:15]} {[%emt 00:00:13]} Nbd7 {[%clk 00:58:30]} {[%emt 00:01:45]}
11. Rb1 {[%clk 00:57:52]} {[%emt 00:04:52]} g5 {[%clk 00:56:37]} {[%emt
00:02:23]} 12. e4 {[%clk 00:44:47]} {[%emt 00:13:35]} Nxe4 {[%clk 00:48:58]}
{[%emt 00:08:09]} 13. Nxe4 {[%clk 00:45:08]} {[%emt 00:00:08]} dxe4 {[%clk
00:49:26]} {[%emt 00:00:04]} 14. d5 {[%clk 00:45:30]} {[%emt 00:00:07]} O-O-O
{[%clk 00:29:06]} {[%emt 00:20:50]} 15. Qa4 {[%clk 00:40:38]} {[%emt 00:05:21]}
Bc5 {[%clk 00:28:33]} {[%emt 00:01:03]} 16. b4 {[%clk 00:36:54]} {[%emt
00:04:14]} Rxh3 {[%clk 00:27:56]} {[%emt 00:01:07]} 0-1

[Event "Latvijas 2022. gada jauniešu čempionāta fināls"]
[Site "Riga, Latvia"]
[Date "2022.06.14"]
[Round "4.5"]
[White "Andrusevics, Jegors"]
[Black "Lazars, Krisjanis"]
[Result "1-0"]
[TimeControl "3600+30"]
[WhiteElo "1569"]
[BlackElo "1041"]

1. d4 {[%clk 01:00:41]} {[%emt 00:00:18]} d5 {[%clk 01:00:40]} {[%emt
00:00:20]} 2. Nf3 {[%clk 01:00:45]} {[%emt 00:00:25]} Nf6 {[%clk 01:00:53]}
{[%emt 00:00:19]} 3. Bf4 {[%clk 01:00:19]} {[%emt 00:00:55]} Bf5 {[%clk
01:00:05]} {[%emt 00:01:18]} 4. e3 {[%clk 01:00:26]} {[%emt 00:00:22]} e6
{[%clk 01:00:15]} {[%emt 00:00:20]} 5. Bd3 {[%clk 01:00:07]} {[%emt 00:00:50]}
Bxd3 {[%clk 01:00:14]} {[%emt 00:00:31]} 6. cxd3 {[%clk 00:59:38]} {[%emt
00:00:59]} Bd6 {[%clk 01:00:27]} {[%emt 00:00:17]} 7. Bg3 {[%clk 00:59:52]}
{[%emt 00:00:16]} Nc6 {[%clk 00:59:58]} {[%emt 00:00:59]} 8. Nc3 {[%clk
00:59:21]} {[%emt 00:01:01]} a6 {[%clk 00:58:46]} {[%emt 00:01:43]} 9. O-O
{[%clk 00:59:02]} {[%emt 00:00:47]} O-O {[%clk 00:57:58]} {[%emt 00:01:19]} 10.
Rc1 {[%clk 00:56:58]} {[%emt 00:02:33]} h6 {[%clk 00:57:32]} {[%emt 00:00:57]}
11. Na4 {[%clk 00:56:09]} {[%emt 00:01:19]} Nd7 {[%clk 00:56:37]} {[%emt
00:01:25]} 12. Nc5 {[%clk 00:56:00]} {[%emt 00:00:39]} Nxc5 {[%clk 00:56:53]}
{[%emt 00:00:14]} 13. dxc5 {[%clk 00:56:11]} {[%emt 00:00:18]} Bxg3 {[%clk
00:57:07]} {[%emt 00:00:17]} 14. hxg3 {[%clk 00:56:31]} {[%emt 00:00:10]} e5
{[%clk 00:56:45]} {[%emt 00:00:52]} 15. e4 {[%clk 00:56:43]} {[%emt 00:00:18]}
dxe4 {[%clk 00:57:00]} {[%emt 00:00:15]} 16. dxe4 {[%clk 00:57:07]} {[%emt
00:00:07]} Qxd1 {[%clk 00:57:21]} {[%emt 00:00:08]} 17. Rfxd1 {[%clk 00:57:31]}
{[%emt 00:00:06]} Rad8 {[%clk 00:57:41]} {[%emt 00:00:10]} 18. a3 {[%clk
00:57:27]} {[%emt 00:00:35]} f6 {[%clk 00:56:28]} {[%emt 00:01:41]} 19. b4
{[%clk 00:55:33]} {[%emt 00:02:26]} Rxd1+ {[%clk 00:56:33]} {[%emt 00:00:24]}
20. Rxd1 {[%clk 00:55:59]} {[%emt 00:00:04]} Rd8 {[%clk 00:56:42]} {[%emt
00:00:20]} 21. Rd5 {[%clk 00:55:21]} {[%emt 00:01:09]} Kf7 {[%clk 00:56:16]}
{[%emt 00:00:56]} 22. Kf1 {[%clk 00:54:50]} {[%emt 00:01:01]} Ke6 {[%clk
00:56:38]} {[%emt 00:00:08]} 23. Rxd8 {[%clk 00:54:53]} {[%emt 00:00:28]} Nxd8
{[%clk 00:57:00]} {[%emt 00:00:07]} 24. Ke2 {[%clk 00:55:20]} {[%emt 00:00:03]}
b6 {[%clk 00:57:06]} {[%emt 00:00:22]} 25. Kd3 {[%clk 00:55:33]} {[%emt
00:00:19]} b5 {[%clk 00:57:16]} {[%emt 00:00:20]} 26. Nd2 {[%clk 00:55:52]}
{[%emt 00:00:12]} Nc6 {[%clk 00:57:20]} {[%emt 00:00:25]} 27. Nb3 {[%clk
00:56:15]} {[%emt 00:00:07]} h5 {[%clk 00:57:31]} {[%emt 00:00:19]} 28. f4
{[%clk 00:55:56]} {[%emt 00:00:49]} exf4 {[%clk 00:57:39]} {[%emt 00:00:22]} 29.
gxf4 {[%clk 00:56:21]} {[%emt 00:00:05]} g5 {[%clk 00:57:49]} {[%emt 00:00:20]}
30. g3 {[%clk 00:56:08]} {[%emt 00:00:43]} g4 {[%clk 00:56:31]} {[%emt
00:01:47]} 31. f5+ {[%clk 00:55:09]} {[%emt 00:01:30]} Kd7 {[%clk 00:55:46]}
{[%emt 00:01:13]} 32. Nc1 {[%clk 00:54:02]} {[%emt 00:01:40]} Ne5+ {[%clk
00:55:23]} {[%emt 00:00:52]} 33. Kd4 {[%clk 00:53:05]} {[%emt 00:01:27]} Nf3+
{[%clk 00:55:38]} {[%emt 00:00:14]} 34. Ke3 {[%clk 00:53:12]} {[%emt 00:00:23]}
Ne5 {[%clk 00:55:50]} {[%emt 00:00:19]} 35. Ne2 {[%clk 00:53:32]} {[%emt
00:00:11]} Nc4+ {[%clk 00:56:01]} {[%emt 00:00:18]} 36. Kd4 {[%clk 00:53:47]}
{[%emt 00:00:14]} Nxa3 {[%clk 00:56:17]} {[%emt 00:00:15]} 37. Nf4 {[%clk
00:54:07]} {[%emt 00:00:10]} Nc2+ {[%clk 00:56:35]} {[%emt 00:00:12]} 38. Kc3
{[%clk 00:54:30]} {[%emt 00:00:07]} Ne3 {[%clk 00:56:36]} {[%emt 00:00:23]} 39.
Nxh5 {[%clk 00:54:49]} {[%emt 00:00:17]} Ke7 {[%clk 00:56:58]} {[%emt
00:00:08]} 40. Kd3 {[%clk 00:54:54]} {[%emt 00:00:25]} Nc4 {[%clk 00:56:17]}
{[%emt 00:01:10]} 41. Nf4 {[%clk 00:55:13]} {[%emt 00:00:11]} Ne5+ {[%clk
00:56:24]} {[%emt 00:00:23]} 42. Ke2 {[%clk 00:54:46]} {[%emt 00:00:58]} Nc6
{[%clk 00:55:50]} {[%emt 00:01:05]} 43. Nd5+ {[%clk 00:54:56]} {[%emt
00:00:19]} Kf7 {[%clk 00:56:05]} {[%emt 00:00:14]} 44. Kd3 {[%clk 00:54:57]}
{[%emt 00:00:30]} Ne5+ {[%clk 00:56:16]} {[%emt 00:00:19]} 45. Ke3 {[%clk
00:54:49]} {[%emt 00:00:37]} c6 {[%clk 00:56:24]} {[%emt 00:00:23]} 46. Nc3
{[%clk 00:54:56]} {[%emt 00:00:23]} Nc4+ {[%clk 00:56:29]} {[%emt 00:00:24]} 47.
Kf4 {[%clk 00:55:19]} {[%emt 00:00:08]} Ne5 {[%clk 00:56:50]} {[%emt 00:00:09]}
48. Nd1 {[%clk 00:55:33]} {[%emt 00:00:17]} Nd3+ {[%clk 00:56:53]} {[%emt
00:00:26]} 49. Ke3 {[%clk 00:54:46]} {[%emt 00:01:18]} Nxb4 {[%clk 00:57:12]}
{[%emt 00:00:10]} 50. Kd4 {[%clk 00:54:44]} {[%emt 00:00:32]} Nc2+ {[%clk
00:57:08]} {[%emt 00:00:34]} 51. Kc3 {[%clk 00:55:01]} {[%emt 00:00:12]} Ne1
{[%clk 00:57:23]} {[%emt 00:00:15]} 52. Nf2 {[%clk 00:55:18]} {[%emt 00:00:13]}
a5 {[%clk 00:57:36]} {[%emt 00:00:18]} 53. Nxg4 {[%clk 00:55:40]} {[%emt
00:00:08]} Nf3 {[%clk 00:57:55]} {[%emt 00:00:11]} 54. Ne3 {[%clk 00:55:53]}
{[%emt 00:00:17]} b4+ {[%clk 00:58:02]} {[%emt 00:00:17]} 55. Kc2 {[%clk
00:55:06]} {[%emt 00:01:22]} Nd4+ {[%clk 00:58:01]} {[%emt 00:00:32]} 56. Kd3
{[%clk 00:55:14]} {[%emt 00:00:22]} Nb3 {[%clk 00:58:07]} {[%emt 00:00:24]} 57.
Nc2 {[%clk 00:55:16]} {[%emt 00:00:28]} Nxc5+ {[%clk 00:58:29]} {[%emt
00:00:08]} 58. Kd4 {[%clk 00:55:43]} {[%emt 00:00:04]} b3 {[%clk 00:58:41]}
{[%emt 00:00:18]} 59. Na3 {[%clk 00:56:04]} {[%emt 00:00:09]} Na4 {[%clk
00:59:00]} {[%emt 00:00:10]} 60. Kc4 {[%clk 00:56:22]} {[%emt 00:00:12]} b2
{[%clk 00:59:16]} {[%emt 00:00:13]} 61. Kd4 {[%clk 00:56:16]} {[%emt 00:00:37]}
c5+ {[%clk 00:57:44]} {[%emt 00:02:02]} 62. Kc4 {[%clk 00:55:59]} {[%emt
00:00:47]} Ke7 {[%clk 00:56:56]} {[%emt 00:01:18]} 63. Kb3 {[%clk 00:55:51]}
{[%emt 00:00:38]} Nb6 {[%clk 00:57:11]} {[%emt 00:00:14]} 64. Kxb2 {[%clk
00:56:03]} {[%emt 00:00:19]} Kd6 {[%clk 00:57:31]} {[%emt 00:00:10]} 65. Kc3
{[%clk 00:56:18]} {[%emt 00:00:15]} Ke5 {[%clk 00:57:55]} {[%emt 00:00:06]} 66.
Kd3 {[%clk 00:56:37]} {[%emt 00:00:10]} c4+ {[%clk 00:58:17]} {[%emt 00:00:09]}
67. Ke3 {[%clk 00:57:03]} {[%emt 00:00:03]} Kd6 {[%clk 00:57:33]} {[%emt
00:01:14]} 68. Kd4 {[%clk 00:57:20]} {[%emt 00:00:13]} a4 {[%clk 00:57:07]}
{[%emt 00:00:57]} 69. g4 {[%clk 00:56:50]} {[%emt 00:01:00]} Ke7 {[%clk
00:56:44]} {[%emt 00:00:48]} 70. Nb5 {[%clk 00:56:59]} {[%emt 00:00:26]} Kf7
{[%clk 00:56:40]} {[%emt 00:00:35]} 71. Kc5 {[%clk 00:56:33]} {[%emt 00:00:55]}
Nd7+ {[%clk 00:56:12]} {[%emt 00:00:58]} 72. Kd6 {[%clk 00:56:31]} {[%emt
00:00:32]} Ne5 {[%clk 00:56:32]} {[%emt 00:00:10]} 73. g5 {[%clk 00:56:55]}
{[%emt 00:00:06]} Nd3 {[%clk 00:56:35]} {[%emt 00:00:27]} 74. g6+ {[%clk
00:56:53]} {[%emt 00:00:32]} Kg7 {[%clk 00:56:54]} {[%emt 00:00:11]} 75. Kd5
{[%clk 00:56:36]} {[%emt 00:00:48]} Nb2 {[%clk 00:55:41]} {[%emt 00:01:42]} 76.
Kd4 {[%clk 00:56:37]} {[%emt 00:00:29]} Kg8 {[%clk 00:53:09]} {[%emt 00:03:02]}
77. Na3 {[%clk 00:56:46]} {[%emt 00:00:21]} Nd1 {[%clk 00:52:52]} {[%emt
00:00:47]} 78. Nxc4 {[%clk 00:56:49]} {[%emt 00:00:27]} Kg7 {[%clk 00:52:50]}
{[%emt 00:00:31]} 79. Na3 {[%clk 00:57:02]} {[%emt 00:00:18]} Nf2 {[%clk
00:53:06]} {[%emt 00:00:14]} 80. Ke3 {[%clk 00:57:12]} {[%emt 00:00:20]} Ng4+
{[%clk 00:53:22]} {[%emt 00:00:14]} 81. Kd4 {[%clk 00:57:39]} {[%emt 00:00:04]}
Ne5 {[%clk 00:53:42]} {[%emt 00:00:10]} 82. Nc4 {[%clk 00:57:57]} {[%emt
00:00:12]} Nc6+ {[%clk 00:54:01]} {[%emt 00:00:11]} 83. Kc5 {[%clk 00:58:13]}
{[%emt 00:00:13]} Ne7 {[%clk 00:54:00]} {[%emt 00:00:30]} 84. Kb4 {[%clk
00:58:09]} {[%emt 00:00:34]} Nc6+ {[%clk 00:52:25]} {[%emt 00:02:05]} 85. Kxa4
{[%clk 00:58:31]} {[%emt 00:00:09]} Nd4 {[%clk 00:52:47]} {[%emt 00:00:08]} 86.
Kb4 {[%clk 00:58:50]} {[%emt 00:00:11]} Ne2 {[%clk 00:53:09]} {[%emt 00:00:08]}
87. Kc5 {[%clk 00:58:55]} {[%emt 00:00:25]} Ng3 {[%clk 00:53:14]} {[%emt
00:00:25]} 88. Kd5 {[%clk 00:59:17]} {[%emt 00:00:08]} Ne2 {[%clk 00:53:23]}
{[%emt 00:00:21]} 89. Nd6 {[%clk 00:59:39]} {[%emt 00:00:07]} Nf4+ {[%clk
00:53:40]} {[%emt 00:00:14]} 90. Kc6 {[%clk 01:00:00]} {[%emt 00:00:09]} Kf8
{[%clk 00:53:50]} {[%emt 00:00:19]} 91. Kd7 {[%clk 01:00:15]} {[%emt 00:00:16]}
Nh5 {[%clk 00:53:23]} {[%emt 00:00:56]} 92. Ke6 {[%clk 01:00:12]} {[%emt
00:00:34]} Kg8 {[%clk 00:53:41]} {[%emt 00:00:11]} 93. Ne8 {[%clk 01:00:33]}
{[%emt 00:00:10]} Nf4+ {[%clk 00:53:57]} {[%emt 00:00:14]} 94. Kxf6 {[%clk
01:00:56]} {[%emt 00:00:07]} Nh5+ {[%clk 00:54:20]} {[%emt 00:00:05]} 95. Kg5
{[%clk 01:01:20]} {[%emt 00:00:08]} Ng3 {[%clk 00:54:44]} {[%emt 00:00:06]} 96.
e5 {[%clk 01:01:40]} {[%emt 00:00:10]} Ne4+ {[%clk 00:55:07]} {[%emt 00:00:07]}
97. Kf4 {[%clk 01:02:07]} {[%emt 00:00:03]} Nc5 {[%clk 00:55:26]} {[%emt
00:00:11]} 98. f6 {[%clk 01:02:30]} {[%emt 00:00:08]} Ne6+ {[%clk 00:55:50]}
{[%emt 00:00:06]} 99. Kf5 {[%clk 01:02:56]} {[%emt 00:00:03]} Nd4+ {[%clk
00:56:09]} {[%emt 00:00:11]} 100. Kg5 {[%clk 01:03:20]} {[%emt 00:00:07]} Ne6+
{[%clk 00:56:29]} {[%emt 00:00:10]} 101. Kh6 {[%clk 01:03:45]} {[%emt
00:00:05]} Kh8 {[%clk 00:56:04]} {[%emt 00:00:54]} 102. f7 {[%clk 01:03:56]}
{[%emt 00:00:18]} Ng7 {[%clk 00:56:23]} {[%emt 00:00:11]} 103. f8=R# {[%clk
01:04:19]} {[%emt 00:00:08]} 1-0

[Event "Latvijas 2022. gada jauniešu čempionāta fināls"]
[Site "Riga, Latvia"]
[Date "2022.06.14"]
[Round "4.6"]
[White "Merzlovs, Timurs"]
[Black "Tolmacevs, Romans"]
[Result "0-1"]
[TimeControl "3600+30"]
[WhiteElo "1152"]
[BlackElo "1466"]

1. e4 {[%clk 01:00:57]} {[%emt 00:00:03]} c6 {[%clk 01:01:00]} 2. d4 {[%clk
01:01:19]} {[%emt 00:00:09]} d5 {[%clk 01:01:28]} {[%emt 00:00:01]} 3. Nc3
{[%clk 01:01:34]} {[%emt 00:00:15]} dxe4 {[%clk 01:01:55]} {[%emt 00:00:04]} 4.
Nxe4 {[%clk 01:01:55]} {[%emt 00:00:09]} Nf6 {[%clk 01:02:22]} {[%emt
00:00:03]} 5. Ng3 {[%clk 01:01:40]} {[%emt 00:00:44]} Qc7 {[%clk 01:01:14]}
{[%emt 00:01:39]} 6. Nf3 {[%clk 01:01:36]} {[%emt 00:00:34]} e6 {[%clk
01:00:45]} {[%emt 00:00:58]} 7. Bd3 {[%clk 00:58:20]} {[%emt 00:03:47]} Bd6
{[%clk 00:59:21]} {[%emt 00:01:53]} 8. O-O {[%clk 00:55:44]} {[%emt 00:03:07]}
O-O {[%clk 00:57:22]} {[%emt 00:02:29]} 9. c3 {[%clk 00:54:16]} {[%emt
00:01:59]} b6 {[%clk 00:53:46]} {[%emt 00:04:06]} 10. Qc2 {[%clk 00:53:56]}
{[%emt 00:00:49]} h6 {[%clk 00:49:20]} {[%emt 00:04:55]} 11. Bd2 {[%clk
00:48:27]} {[%emt 00:05:58]} Re8 {[%clk 00:41:41]} {[%emt 00:08:11]} 12. Rae1
{[%clk 00:47:06]} {[%emt 00:01:51]} Nbd7 {[%clk 00:41:23]} {[%emt 00:00:49]} 13.
c4 {[%clk 00:40:24]} {[%emt 00:07:11]} Bb7 {[%clk 00:40:13]} {[%emt 00:01:40]}
14. Bc3 {[%clk 00:35:56]} {[%emt 00:04:58]} Rac8 {[%clk 00:32:22]} {[%emt
00:08:21]} 15. Ne4 {[%clk 00:31:05]} {[%emt 00:05:22]} Nxe4 {[%clk 00:32:07]}
{[%emt 00:00:44]} 16. Bxe4 {[%clk 00:31:09]} {[%emt 00:00:25]} Nf6 {[%clk
00:31:36]} {[%emt 00:01:01]} 17. Bd3 {[%clk 00:31:01]} {[%emt 00:00:38]} Qe7
{[%clk 00:24:16]} {[%emt 00:07:50]} 18. h3 {[%clk 00:28:28]} {[%emt 00:03:03]}
Ba8 {[%clk 00:21:51]} {[%emt 00:02:56]} 19. Ne5 {[%clk 00:27:33]} {[%emt
00:01:25]} Red8 {[%clk 00:17:45]} {[%emt 00:04:36]} 20. f4 {[%clk 00:25:37]}
{[%emt 00:02:26]} Qb7 {[%clk 00:15:08]} {[%emt 00:03:06]} 21. Be4 {[%clk
00:24:04]} {[%emt 00:02:04]} Nxe4 {[%clk 00:14:15]} {[%emt 00:01:23]} 22. Qxe4
{[%clk 00:24:00]} {[%emt 00:00:33]} c5 {[%clk 00:12:51]} {[%emt 00:01:55]} 23.
Qxb7 {[%clk 00:22:11]} {[%emt 00:02:18]} Bxb7 {[%clk 00:13:16]} {[%emt
00:00:05]} 24. b3 {[%clk 00:21:39]} {[%emt 00:01:02]} cxd4 {[%clk 00:12:40]}
{[%emt 00:01:07]} 25. Bxd4 {[%clk 00:21:59]} {[%emt 00:00:09]} Bb4 {[%clk
00:12:49]} {[%emt 00:00:21]} 26. Rd1 {[%clk 00:21:46]} {[%emt 00:00:43]} Rxd4
{[%clk 00:12:14]} {[%emt 00:01:06]} 27. Rxd4 {[%clk 00:21:33]} {[%emt
00:00:43]} Bc5 {[%clk 00:12:43]} {[%emt 00:00:01]} 28. Rfd1 {[%clk 00:21:35]}
{[%emt 00:00:28]} Rd8 {[%clk 00:13:04]} {[%emt 00:00:08]} 29. Kf1 {[%clk
00:20:18]} {[%emt 00:01:48]} Rxd4 {[%clk 00:13:02]} {[%emt 00:00:32]} 30. Rxd4
{[%clk 00:20:38]} {[%emt 00:00:09]} Bxd4 {[%clk 00:13:30]} {[%emt 00:00:02]} 31.
g4 {[%clk 00:19:21]} {[%emt 00:01:47]} Bxe5 {[%clk 00:13:55]} {[%emt 00:00:06]}
32. fxe5 {[%clk 00:19:16]} {[%emt 00:00:07]} Be4 {[%clk 00:14:19]} {[%emt
00:00:35]} 33. a3 {[%clk 00:19:33]} {[%emt 00:00:12]} Bc2 {[%clk 00:14:44]}
{[%emt 00:00:05]} 34. b4 {[%clk 00:19:59]} {[%emt 00:00:05]} Bd3+ {[%clk
00:15:09]} {[%emt 00:00:05]} 0-1

[Event "Latvijas 2022. gada jauniešu čempionāta fināls"]
[Site "Riga, Latvia"]
[Date "2022.06.14"]
[Round "4.7"]
[White "Pukite, Elza"]
[Black "Maklakova, Naomi"]
[Result "0-1"]
[TimeControl "3600+30"]
[WhiteElo "1114"]
[BlackElo "1488"]

1. c4 {[%clk 01:00:59]} {[%emt 00:00:01]} e5 {[%clk 01:00:51]} {[%emt
00:00:09]} 2. Nc3 {[%clk 01:01:22]} {[%emt 00:00:07]} Nf6 {[%clk 00:59:00]}
{[%emt 00:02:20]} 3. g3 {[%clk 01:00:30]} {[%emt 00:01:23]} d5 {[%clk
00:57:49]} {[%emt 00:01:40]} 4. cxd5 {[%clk 00:59:12]} {[%emt 00:01:49]} Nxd5
{[%clk 00:57:09]} {[%emt 00:01:10]} 5. Bg2 {[%clk 00:58:58]} {[%emt 00:00:43]}
c6 {[%clk 00:57:10]} {[%emt 00:00:29]} 6. e3 {[%clk 00:57:45]} {[%emt
00:01:44]} Be6 {[%clk 00:55:48]} {[%emt 00:01:52]} 7. Nge2 {[%clk 00:56:21]}
{[%emt 00:01:53]} Bd6 {[%clk 00:55:10]} {[%emt 00:01:08]} 8. O-O {[%clk
00:56:07]} {[%emt 00:00:45]} O-O {[%clk 00:55:24]} {[%emt 00:00:15]} 9. d4
{[%clk 00:55:38]} {[%emt 00:01:00]} Nxc3 {[%clk 00:50:21]} {[%emt 00:05:33]} 10.
Nxc3 {[%clk 00:54:41]} {[%emt 00:01:26]} exd4 {[%clk 00:46:13]} {[%emt
00:04:38]} 11. exd4 {[%clk 00:54:29]} {[%emt 00:00:42]} Na6 {[%clk 00:38:07]}
{[%emt 00:08:36]} 12. a3 {[%clk 00:51:03]} {[%emt 00:03:57]} Nc7 {[%emt
00:01:18]} 13. Qh5 {[%clk 00:43:43]} {[%emt 00:07:11]} Re8 {[%clk 00:37:07]}
{[%emt 00:01:20]} 14. Bg5 {[%clk 00:38:48]} {[%emt 00:05:25]} Qd7 {[%clk
00:30:54]} {[%emt 00:06:44]} 15. Ne4 {[%clk 00:37:56]} {[%emt 00:01:22]} Bg4
{[%clk 00:21:24]} {[%emt 00:09:59]} 16. Nf6+ {[%clk 00:27:26]} {[%emt
00:10:59]} gxf6 {[%clk 00:21:24]} {[%emt 00:00:32]} 17. Qh6 {[%clk 00:27:15]}
{[%emt 00:00:41]} Bf8 {[%clk 00:21:33]} {[%emt 00:00:21]} 18. Qxf6 {[%clk
00:26:51]} {[%emt 00:00:54]} Qf5 {[%clk 00:21:53]} {[%emt 00:00:10]} 19. Rfe1
{[%clk 00:25:28]} {[%emt 00:01:54]} Bg7 {[%clk 00:20:57]} {[%emt 00:01:25]} 20.
Qxf5 {[%clk 00:25:29]} {[%emt 00:00:29]} Bxf5 {[%clk 00:21:18]} {[%emt
00:00:09]} 21. Red1 {[%clk 00:25:06]} {[%emt 00:00:52]} Ne6 {[%clk 00:20:56]}
{[%emt 00:00:53]} 22. Be3 {[%clk 00:25:24]} {[%emt 00:00:12]} Rad8 {[%clk
00:21:00]} {[%emt 00:00:26]} 23. d5 {[%clk 00:25:34]} {[%emt 00:00:20]} cxd5
{[%clk 00:21:01]} {[%emt 00:00:28]} 24. Bxa7 {[%clk 00:25:08]} {[%emt
00:00:56]} Bxb2 {[%clk 00:20:24]} {[%emt 00:01:08]} 25. Ra2 {[%clk 00:25:15]}
{[%emt 00:00:22]} Bg7 {[%clk 00:19:52]} {[%emt 00:01:03]} 26. Rxd5 {[%clk
00:25:11]} {[%emt 00:00:34]} Rxd5 {[%clk 00:20:01]} {[%emt 00:00:21]} 27. Bxd5
{[%clk 00:25:35]} {[%emt 00:00:06]} Bh3 {[%clk 00:16:59]} {[%emt 00:03:31]} 28.
Bg2 {[%clk 00:25:43]} {[%emt 00:00:22]} Bxg2 {[%clk 00:17:18]} {[%emt
00:00:12]} 29. Kxg2 {[%clk 00:26:07]} {[%emt 00:00:06]} Ra8 {[%clk 00:17:38]}
{[%emt 00:00:09]} 30. Be3 {[%clk 00:26:27]} {[%emt 00:00:09]} Ra4 {[%clk
00:17:45]} {[%emt 00:00:24]} 31. f4 {[%clk 00:26:38]} {[%emt 00:00:19]} b5
{[%clk 00:16:53]} {[%emt 00:01:23]} 32. Bd2 {[%clk 00:26:58]} {[%emt 00:00:10]}
Bf8 {[%clk 00:16:35]} {[%emt 00:00:48]} 33. Kf3 {[%clk 00:26:20]} {[%emt
00:01:08]} Rxa3+ {[%clk 00:16:46]} {[%emt 00:00:20]} 34. Rxa3 {[%clk 00:26:35]}
{[%emt 00:00:14]} Bxa3 {[%clk 00:17:11]} {[%emt 00:00:05]} 35. Ke4 {[%clk
00:26:58]} {[%emt 00:00:07]} b4 {[%clk 00:17:10]} {[%emt 00:00:31]} 36. Kd3
{[%clk 00:27:23]} {[%emt 00:00:04]} Nc5+ {[%clk 00:15:59]} {[%emt 00:01:42]} 37.
Kc2 {[%clk 00:27:38]} {[%emt 00:00:15]} b3+ {[%clk 00:15:43]} {[%emt 00:00:46]}
38. Kb1 {[%clk 00:28:02]} {[%emt 00:00:06]} Nd3 {[%clk 00:15:16]} {[%emt
00:00:57]} 39. h4 {[%clk 00:27:50]} {[%emt 00:00:41]} Kg7 {[%clk 00:15:04]}
{[%emt 00:00:42]} 40. g4 {[%clk 00:27:49]} {[%emt 00:00:31]} Nf2 {[%clk
00:14:55]} {[%emt 00:00:39]} 41. g5 {[%clk 00:28:08]} {[%emt 00:00:12]} Kg6
{[%clk 00:15:10]} {[%emt 00:00:14]} 42. Be1 {[%clk 00:27:36]} {[%emt 00:01:03]}
Nd3 {[%clk 00:15:10]} {[%emt 00:00:29]} 43. Bd2 {[%clk 00:27:50]} {[%emt
00:00:16]} Kf5 {[%clk 00:15:29]} {[%emt 00:00:11]} 44. h5 {[%clk 00:28:04]}
{[%emt 00:00:16]} Nxf4 {[%clk 00:15:48]} {[%emt 00:00:11]} 0-1